Cogmind - Beta 10.2 @@@ ROGUE MODE // 2021.12.09 @ 18:38:06 Player: DaddyWalrus Result: Self-destructed Performance ------------- Evolutions (5) 2500 Regions Visited (10) 2000 Robots Destroyed (111) 555 Value Destroyed (3023) 3023 Prototype IDs (24) 480 Alien Tech Used (0) 0 Bonus (385) 385 TOTAL SCORE: 8943 Bonus ------- High Alert Combat Kills 85 Aligned with FarCom 300 Cogmind --------- Core Integrity 809/1000 Matter 300/300 Energy 100/100 System Corruption 0% Temperature Cool (0) Movement Core (1100) Ox21 Location -5/Factory Parts ------- > --- POWER (1) -------- (None) > --- PROPULSION (6) --- (None) > --- UTILITY (6) ------ High-capacity Storage Unit High-capacity Storage Unit Enhanced Optical Array > --- WEAPON (4) ------- (None) > --- INVENTORY (20) --- High-capacity Matter Pod (200) Advanced Sensor Array Advanced Signal Interpreter Phase Shifter Hacking Suite System Shield System Shield High-powered Tractor Beam AWS/Thermal Latent Energy Streamer Firepult Remote Datajack Heavy Hammer Makeshift Spear Peak State ------------ > --- POWER ------------ Light Nuclear Core > --- PROPULSION ------- Light Treads Carbon-fiber Leg Wheel Wheel Compact Wheel > --- UTILITY ---------- Improved Cooling System High-capacity Storage Unit High-capacity Storage Unit Enhanced Optical Array Advanced Terrain Scanner > --- WEAPON ----------- Plasma Cannon Plasma Cannon Flak Gun Makeshift Spear > --- INVENTORY -------- Light Ion Engine Light Ion Engine Light Nuclear Core Improved Heat Sink High-capacity Matter Pod Advanced Sensor Array Advanced Signal Interpreter Weapon Cycler System Shield System Shield High-powered Tractor Beam Spread Laser AWS/Thermal Latent Energy Streamer Plasma Cannon Firepult Grenade Launcher Heavy Hammer [Rating: 47] Favorites ----------- Power Ion Engine Engine Ion Engine Power Core Light Nuclear Core Propulsion Light Treads Treads Light Treads Leg Aluminum Leg Wheel Wheel Utility High-capacity Storage Unit Device Improved Heat Sink Storage High-capacity Storage Unit Processor Enhanced Optical Array Hackware Hacking Suite Protection Improved Medium Armor Plating Weapon Assault Rifle Energy Gun Heavy Particle Gun Energy Cannon Plasma Cannon Ballistic Gun Assault Rifle Launcher Grenade Launcher Impact Weapon Heavy Hammer Piercing Weapon Makeshift Spear Build | -11 -10 -10 -10 -9 -8 -7 -7 -7 -6 -5 ------- Run | Scr Mat Min Exi Min Mat Fac Low Low Fac Fac Slots Evolved 10 | . . . . . 4 2 . . 2 2 Power . | . . . . . . . . . . . Propulsion 4 | . . . . . . 2 . . 1 1 Utility 4 | . . . . . 2 . . . 1 1 Weapon 2 | . . . . . 2 . . . . . Parts Attached 98 | 6 8 . 2 6 10 25 14 3 21 3 Power 11 | 1 2 . . . . 3 1 . 3 1 Engine 6 | 1 2 . . . . 1 . . 1 1 Core 5 | . . . . . . 2 1 . 2 . Reactor . | . . . . . . . . . . . Propulsion 25 | 2 3 . . 1 . 9 4 . 6 . Treads 9 | . 2 . . 1 . 5 . . 1 . Leg 4 | . . . . . . 3 1 . . . Wheel 12 | 2 1 . . . . 1 3 . 5 . Hover . | . . . . . . . . . . . Flight . | . . . . . . . . . . . Utility 17 | 1 2 . 2 . 4 3 2 1 2 . Device 5 | . . . . . 1 1 . 1 2 . Storage 7 | 1 1 . 2 . 2 . 1 . . . Processor 1 | . . . . . . . 1 . . . Hackware 1 | . 1 . . . . . . . . . Protection 3 | . . . . . 1 2 . . . . Artifact . | . . . . . . . . . . . Weapon 45 | 2 1 . . 5 6 10 7 2 10 2 Energy Gun 5 | . . . . . 1 1 1 1 1 . Energy Cannon 7 | . . . . . . . . . 6 1 Ballistic Gun 22 | 2 1 . . 3 4 7 3 . 2 . Ballistic Cannon . | . . . . . . . . . . . Launcher 7 | . . . . 2 1 2 1 . . 1 Special Weapon . | . . . . . . . . . . . Impact Weapon 2 | . . . . . . . 2 . . . Slashing Weapon . | . . . . . . . . . . . Piercing Weapon 2 | . . . . . . . . 1 1 . Special Melee Weapon . | . . . . . . . . . . . Unidentified Prototypes 1 | . . . . . 1 . . . . . Parts Lost 47 | . 3 . . 1 . 10 10 . 15 8 Power 3 | . . . . . . . . . 2 1 Propulsion 20 | . 2 . . 1 . 4 4 . 7 2 Utility 6 | . . . . . . 2 1 . 1 2 Weapon 18 | . 1 . . . . 4 5 . 5 3 Highest Loss Streak 8 | . 2 . . 1 . 7 6 . 7 8 Average Slot Usage (%) 92 | . 96 100 100 99 91 94 79 90 89 51 Engine 7 | . 14 14 14 14 9 4 . . 2 2 Core 1 | . . . . . . 2 7 7 3 . Treads 17 | . 10 28 28 27 18 25 2 . 2 . Leg 2 | . . . . . . 2 13 7 2 . Wheel 4 | . 16 . . . . . 3 23 20 8 Device 3 | . . . . . 4 7 4 4 12 10 Storage 17 | . 14 14 20 28 18 15 15 15 13 11 Processor 1 | . . . . . . . 7 7 6 5 Hackware 2 | . 11 14 8 . . . . . . . Protection 1 | . . . . . 6 5 . . . . Energy Gun 3 | . . . . . 7 4 6 11 4 . Energy Cannon 1 | . . . . . . . . . 12 7 Ballistic Gun 18 | . 28 28 28 18 24 19 9 . 4 . Launcher 3 | . . . . 9 3 3 2 . . 2 Naked Turns . | . . . . . . . . . . . Heaviest Build 106 | 13 25 24 40 42 83 101 83 82 106 89 Greatest Support 82 | 26 40 40 40 40 40 82 30 30 56 20 Greatest Overweight (x) 26 | . 1 . . 1 2 8 7 2 4 26 Average Overweight (x) 1 | . . . . . 1 1 2 2 2 4 Largest Inventory Capacity 32 | 6 10 10 16 16 32 20 20 20 20 20 Average Capacity 16 | 5 8 10 12 16 19 20 20 20 20 20 Most Carried 20 | 4 10 10 15 16 20 20 17 17 20 18 Average Carried 15 | 1 7 9 11 15 18 19 15 15 19 16 Final Capacity 20 | 6 10 10 16 16 20 20 20 20 20 20 Final Carried 20 | 4 10 10 15 16 20 18 15 16 18 16 Class Distribution -------------------- 40% | Mutant 19% | Scavenger-Skirmisher 12% | Scavenger-Tank 8% | Hauler-Skirmisher 6% | Scavenger-Mutant 5% | Hauler-Tank 5% | Hauler-Mutant Dominant Class ---------------- Mutant | -10/Materials Mutant | -10/Mines Mutant | -10/Exiles Mutant | -9/Mines Hauler-Skirmisher | -8/Materials Scavenger-Tank | -7/Factory Scavenger-Skirmisher | -7/Lower Caves Scavenger-Mutant | -7/Lower Caves Scavenger-Skirmisher | -6/Factory Hauler-Mutant | -5/Factory Resources | -11 -10 -10 -10 -9 -8 -7 -7 -7 -6 -5 ----------- Run | Scr Mat Min Exi Min Mat Fac Low Low Fac Fac Matter Collected 2830 | 260 309 . 20 317 254 1032 331 30 277 . Remotely . | . . . . . . . . . . . Salvage Created 3692 | . 422 . . 221 254 1758 278 22 668 69 Parts 231 | . 29 . . 22 7 123 15 . 32 3 Haulers Intercepted 2 | . 2 . . . . . . . . . Recyclers Shooed 12 | . . . . 2 2 8 . . . . Parts Field Recycled . | . . . . . . . . . . . Retrieved Matter . | . . . . . . . . . . . Parts Self-Destructed 12 | . . . . . . . 12 . . . Prevented . | . . . . . . . . . . . Kills | -11 -10 -10 -10 -9 -8 -7 -7 -7 -6 -5 ------- Run | Scr Mat Min Exi Min Mat Fac Low Low Fac Fac Combat Hostiles Destroyed 65 | . 8 . . 13 2 24 9 . 6 3 Guns 32 | . 8 . . 2 2 14 5 . 1 . Cannons 5 | . . . . . . . . . 5 . AOE 27 | . . . . 11 . 10 3 . . 3 Classes Destroyed 13 | . 6 . . . 2 4 1 . . . Worker 8 | . 1 . . 1 . 5 . . 1 . Builder 19 | . . . . . . 16 . . 2 1 Hauler 2 | . 2 . . . . . . . . . Recycler 13 | . . . . . 2 9 . . 2 . Operator 3 | . 1 . . . 1 1 . . . . Watcher 1 | . 1 . . . . . . . . . Swarmer 22 | . 3 . . 8 . 3 6 . . 2 Grunt 29 | . 5 . . 5 1 16 2 . . . Brawler 1 | . . . . . . 1 . . . . Duelist 2 | . . . . . . . 1 . . 1 Sentry 4 | . . . . . . 1 . . 3 . Hunter 5 | . . . . . 1 2 . . 2 . Programmer 2 | . . . . . . 1 . . 1 . Decomposer 1 | . . . . . . . . 1 . . Best Kill Streak 14 | . 5 . . 4 4 14 3 . 6 4 Combat Bots Only 5 | . 5 . . 4 1 5 3 . 2 3 Max Kills in Single Turn 4 | . 1 . . 2 2 4 2 1 1 4 Gunslinging . | . . . . . . . . . . . Exploded 3 | . . . . 2 . 2 2 . . 3 Melee . | . . . . . . . . . . . Uniques/NPCs Destroyed . | . . . . . . . . . . . Combat | -11 -10 -10 -10 -9 -8 -7 -7 -7 -6 -5 -------- Run | Scr Mat Min Exi Min Mat Fac Low Low Fac Fac Damage Taken 6388 | . 410 . . 333 54 2259 1153 35 1525 619 Core 1002 | . 111 . . 70 . 158 201 18 253 191 Absorbed by Shields . | . . . . . . . . . . . Core Remaining (%) 68 | 100 . . . 27 100 . . 46 70 . Volleys Fired 208 | . 45 . . 20 18 75 26 . 23 1 Largest 4 | . 2 . . 2 4 4 4 . 4 2 Hottest 288 | . 40 . . 50 115 138 138 . 288 170 Shots Fired 616 | . 90 . . 40 72 264 67 . 81 2 Gun 535 | . 90 . . 31 72 243 64 . 35 . Cannon 48 | . . . . . . . . . 46 2 Launcher 33 | . . . . 9 . 21 3 . . . Special . | . . . . . . . . . . . Kinetic 450 | . 90 . . 31 59 194 46 . 30 . Thermal 133 | . . . . . 13 49 18 . 51 2 Explosive 33 | . . . . 9 . 21 3 . . . Electromagnetic . | . . . . . . . . . . . Robot Hit Streak 21 | . 8 . . 9 7 11 5 . 21 . Robot Miss Streak 8 | . 5 . . 2 3 5 8 . 6 . Penetration Max 1 | . . . . . . 1 . . . . Secondary Targets 4 | . . . . . . 2 2 . . . Max Gunslinging Chain 1 | . . . . . . 1 1 . . . Shots Hit Robots 362 | . 52 . . 15 43 158 38 1 55 . Core Hits 223 | . 24 . . 23 14 109 16 . 33 4 Critical Hits 2 | . . . . . . 2 . . . . Critical Kills . | . . . . . . . . . . . Critical Parts Destroyed 2 | . . . . . . 2 . . . . Melee Attacks 4 | . . . . . . . 2 1 1 . Impact 2 | . . . . . . . 2 . . . Slashing . | . . . . . . . . . . . Piercing 2 | . . . . . . . . 1 1 . Sneak Attacks 1 | . . . . . . . . 1 . . Combat Hostiles . | . . . . . . . . . . . Follow-up Attacks . | . . . . . . . . . . . Damage Inflicted 8805 | . 541 . . 887 364 4138 815 102 1395 563 Guns 4558 | . 541 . . 166 364 2372 611 . 504 . Cannons 891 | . . . . . . . . . 891 . Explosions 3202 | . . . . 721 . 1766 152 . . 563 Melee 154 | . . . . . . . 52 102 . . Ramming . | . . . . . . . . . . . Kinetic 3447 | . 541 . . 166 209 1738 391 . 402 . Thermal 2565 | . . . . . 155 634 220 . 993 563 Explosive 2639 | . . . . 721 . 1766 152 . . . Electromagnetic . | . . . . . . . . . . . Impact 52 | . . . . . . . 52 . . . Slashing . | . . . . . . . . . . . Piercing 102 | . . . . . . . . 102 . . Highest Corruption 2 | . 1 1 1 1 . 2 2 2 1 . Average Corruption 1 | . 1 1 1 1 . 1 2 2 1 . Corruption Purged . | . . . . . . . . . . . Effects 19 | . 1 . 3 3 . 7 4 1 . . Message Errors 8 | . . . 3 2 . 2 1 . . . Heat Flow Errors 2 | . . . . . . 1 1 . . . Energy Discharges 3 | . . . . 1 . 1 1 . . . Data Loss (minor) 3 | . . . . . . 2 . 1 . . Targeting Errors 3 | . 1 . . . . 1 1 . . . Overload Shots . | . . . . . . . . . . . Overflow Damage 292 | . . . . 5 . 40 12 89 12 134 Projectiles 12 | . . . . . . . . . 12 . Explosions 179 | . . . . 5 . 40 . . . 134 Melee 101 | . . . . . . . 12 89 . . Knockbacks . | . . . . . . . . . . . Impact . | . . . . . . . . . . . Kinetic . | . . . . . . . . . . . Secondary . | . . . . . . . . . . . Self-Inflicted Damage 269 | . . . . . . 188 24 . . 57 Shots 7 | . . . . . . 5 1 . . 1 Rammed . | . . . . . . . . . . . Targets Rammed . | . . . . . . . . . . . Kicked . | . . . . . . . . . . . Crushed . | . . . . . . . . . . . Highest Temperature 234 | . 15 . . 19 176 135 234 . 177 . Average Temperature 38 | . 5 . . 8 54 25 65 . 52 . Received Heat Transfer 1356 | . 204 . . 153 18 459 342 18 162 . Siege Activations . | . . . . . . . . . . . Robots Corrupted . | . . . . . . . . . . . Combat Hostiles . | . . . . . . . . . . . Parts Fried . | . . . . . . . . . . . Impact Corruptions 2 | . . . . . . . 2 . . . Robots Melted . | . . . . . . . . . . . Combat Hostiles . | . . . . . . . . . . . Parts Melted 11 | . . . . . . 1 1 . 8 1 Heat Transferred 4055 | . . . . . 296 1258 407 . 1694 400 Parts Sabotaged . | . . . . . . . . . . . Parts Stolen . | . . . . . . . . . . . Parts Stripped . | . . . . . . . . . . . Power Chain Reactions . | . . . . . . . . . . . Missiles Intercepted . | . . . . . . . . . . . Alert | -11 -10 -10 -10 -9 -8 -7 -7 -7 -6 -5 ------- Run | Scr Mat Min Exi Min Mat Fac Low Low Fac Fac Peak Influence 640 | . 109 27 . 190 100 640 . . 327 387 Initial 45 | . . 27 . . 15 . . . 45 42 Average 115 | . 41 27 . 99 30 220 . . 119 128 Maximum Alert Level 2 | . . . . . . 2 . . 1 1 Low Security (%) 88 | 100 100 100 . 100 100 68 . . 89 72 Level 1 5 | . . . . . . 11 . . 10 27 Level 2 5 | . . . . . . 20 . . . . Level 3 . | . . . . . . . . . . . Level 4 . | . . . . . . . . . . . Level 5 . | . . . . . . . . . . . High Security . | . . . . . . . . . . . Max Security . | . . . . . . . . . . . Squads Dispatched 16 | . 3 . . . 1 8 . . 3 1 Investigation 5 | . 1 . . . . 2 . . 2 . Extermination 1 | . . . . . . 1 . . . . Reinforcement 9 | . 2 . . . 1 4 . . 1 1 Assault 1 | . . . . . . 1 . . . . Garrison . | . . . . . . . . . . . Intercept . | . . . . . . . . . . . Construction Impeded 4 | . . . . . . 2 . . 1 1 Haulers Reinforced 1 | . . . . . . 1 . . . . Stealth | -11 -10 -10 -10 -9 -8 -7 -7 -7 -6 -5 --------- Run | Scr Mat Min Exi Min Mat Fac Low Low Fac Fac Distress Signals 3 | . . . . . . 2 . . . 1 Communications Jammed . | . . . . . . . . . . . Distress Signals . | . . . . . . . . . . . Times Spotted 98 | . 16 . . 13 7 35 10 5 8 4 Peak Tracking Total 6 | . 3 . . 4 2 6 4 5 2 3 Tactical Retreats 1 | . . . . . . 1 . . . . Traps | -11 -10 -10 -10 -9 -8 -7 -7 -7 -6 -5 ------- Run | Scr Mat Min Exi Min Mat Fac Low Low Fac Fac Traps Triggered 1 | . . . . . . . . . . 1 Indirectly . | . . . . . . . . . . . Trap Hack Attempts . | . . . . . . . . . . . Triggered . | . . . . . . . . . . . Disarmed . | . . . . . . . . . . . Reprogrammed . | . . . . . . . . . . . Reused . | . . . . . . . . . . . Traps Extracted . | . . . . . . . . . . . Installed . | . . . . . . . . . . . Triggered . | . . . . . . . . . . . Machines | -11 -10 -10 -10 -9 -8 -7 -7 -7 -6 -5 ---------- Run | Scr Mat Min Exi Min Mat Fac Low Low Fac Fac Machines Disabled 29 | . . . . 4 . 7 . . 4 14 Max in Single Turn 14 | . . . . 2 . 3 . . 4 14 Machines Sabotaged . | . . . . . . . . . . . Garrisons Compromised . | . . . . . . . . . . . Overloaded Fab Kills . | . . . . . . . . . . . Fab Network Shutdowns . | . . . . . . . . . . . Hacking | -11 -10 -10 -10 -9 -8 -7 -7 -7 -6 -5 --------- Run | Scr Mat Min Exi Min Mat Fac Low Low Fac Fac Machines Accessed 13 | . 3 . 2 . 2 4 . . 2 . Terminals 8 | . 3 . . . 1 2 . . 2 . Fabricators . | . . . . . . . . . . . Repair Stations 1 | . . . . . 1 . . . . . Recycling Units 1 | . . . . . . 1 . . . . Scanalyzers 1 | . . . . . . 1 . . . . Garrison Access . | . . . . . . . . . . . Total Hacks 41 | . 14 . 5 . 6 10 . . 6 . Successful 20 | . 6 . 5 . 2 5 . . 2 . Failed 21 | . 8 . . . 4 5 . . 4 . Catastrophic 5 | . 2 . . . 1 1 . . 1 . Database Lockouts . | . . . . . . . . . . . Manual 33 | . 14 . 3 . 6 4 . . 6 . Terminals 30 | . 14 . . . 5 5 . . 6 . Fabricators . | . . . . . . . . . . . Repair Stations 1 | . . . . . 1 . . . . . Recycling Units 2 | . . . . . . 2 . . . . Scanalyzers 3 | . . . . . . 3 . . . . Garrison Access . | . . . . . . . . . . . Terminal Hacks 9 | . 3 . 5 . . 1 . . . . Record 4 | . . . 4 . . . . . . . Part Schematic 2 | . 1 . . . . 1 . . . . Unreport Threat 2 | . 2 . . . . . . . . . EX-Prototype ID Bank 1 | . . . 1 . . . . . . . Fabricator Hacks . | . . . . . . . . . . . Repair Station Hacks . | . . . . . . . . . . . Recycling Unit Hacks 1 | . . . . . . 1 . . . . Report Inventory 1 | . . . . . . 1 . . . . Scanalyzer 1 | . . . . . . 1 . . . . Insert Component 1 | . . . . . . 1 . . . . Garrison Access Hacks . | . . . . . . . . . . . Unauthorized Hacks 9 | . 3 . . . 2 2 . . 2 . Terminals 8 | . 3 . . . 1 2 . . 2 . Assimilate 2 | . . . . . . 1 . . 1 . Botnet 6 | . 3 . . . 1 1 . . 1 . Fabricators . | . . . . . . . . . . . Repair Stations 1 | . . . . . 1 . . . . . Mechanics 1 | . . . . . 1 . . . . . Recycling Units . | . . . . . . . . . . . Scanalyzers . | . . . . . . . . . . . Garrison Access . | . . . . . . . . . . . Data Cores Recovered 1 | . . . . . 1 . . . . . Used . | . . . . . . . . . . . Hacking Detections 11 | . 3 . . . 2 4 . . 2 . Full Trace Events 6 | . 2 . . . . 2 . . 2 . Feedback Events 2 | . 1 . . . . 1 . . . . Corruption 2 | . 1 . . . . 1 . . . . Feedback Blocked . | . . . . . . . . . . . Robot Schematics Acquired . | . . . . . . . . . . . Robots Built . | . . . . . . . . . . . Matter . | . . . . . . . . . . . Time . | . . . . . . . . . . . Total Robot Build Rating . | . . . . . . . . . . . Part Schematics Acquired 2 | . 1 . . . . 1 . . . . Parts Built . | . . . . . . . . . . . Matter . | . . . . . . . . . . . Time . | . . . . . . . . . . . Total Part Build Rating . | . . . . . . . . . . . Parts Repaired . | . . . . . . . . . . . Time . | . . . . . . . . . . . Parts Recycled . | . . . . . . . . . . . Recycled Matter . | . . . . . . . . . . . Retrieved Matter . | . . . . . . . . . . . Retrieved Components . | . . . . . . . . . . . Parts Scanalyzed 1 | . . . . . . 1 . . . . Part Schematics Acquired . | . . . . . . . . . . . Parts Damaged . | . . . . . . . . . . . Bothacking | -11 -10 -10 -10 -9 -8 -7 -7 -7 -6 -5 ------------ Run | Scr Mat Min Exi Min Mat Fac Low Low Fac Fac Used RIF Installer . | . . . . . . . . . . . Robots Hacked . | . . . . . . . . . . . Non-combat . | . . . . . . . . . . . Combat . | . . . . . . . . . . . Robot Hacks Applied . | . . . . . . . . . . . Relay Couplers Released . | . . . . . . . . . . . Robots Rewired . | . . . . . . . . . . . Allies Hacked . | . . . . . . . . . . . Hacks Repelled . | . . . . . . . . . . . Allies | -11 -10 -10 -10 -9 -8 -7 -7 -7 -6 -5 -------- Run | Scr Mat Min Exi Min Mat Fac Low Low Fac Fac Total Allies 2 | . . . . . . 1 . . 1 . Largest Group 1 | . . . . . . 1 . . 1 . Highest-Rated Group 10 | . . . . . . 10 . . 10 . Highest-Rated Ally 10 | . . . . . . 10 . . 10 . Total Orders . | . . . . . . . . . . . Ally Attacks . | . . . . . . . . . . . Total Damage . | . . . . . . . . . . . Kills . | . . . . . . . . . . . Allies Corrupted . | . . . . . . . . . . . Allies Melted . | . . . . . . . . . . . Intel | -11 -10 -10 -10 -9 -8 -7 -7 -7 -6 -5 ------- Run | Scr Mat Min Exi Min Mat Fac Low Low Fac Fac Robot Analysis Total . | . . . . . . . . . . . Derelict Logs Recovered 2 | . . . . 1 . . 1 . . . Drone Launches . | . . . . . . . . . . . Drone Recoveries . | . . . . . . . . . . . Exploration | -11 -10 -10 -10 -9 -8 -7 -7 -7 -6 -5 ------------- Run | Scr Mat Min Exi Min Mat Fac Low Low Fac Fac Turns Passed 5564 | 45 605 122 558 913 633 1203 854 78 429 124 Spaces Moved 2910 | 38 414 76 345 447 287 489 412 68 253 81 Core 5 | 3 . . . . . . . . . 2 Treads 1703 | . 122 76 345 447 287 426 . . . . Legs 341 | . . . . . . 63 278 . . . Wheels 861 | 35 292 . . . . . 134 68 253 79 Hover . | . . . . . . . . . . . Flight . | . . . . . . . . . . . Fastest Speed 50 | 50 80 160 160 160 180 175 100 100 94 110 Average Speed 157 | 85 108 160 160 174 191 180 182 100 106 144 Slowest Speed 1350 | 90 160 160 160 180 200 360 330 100 130 1350 Overloaded Moves . | . . . . . . . . . . . Propulsion Burnouts . | . . . . . . . . . . . Robots Hopped . | . . . . . . . . . . . Cave-ins Triggered . | . . . . . . . . . . . Exploration Rate (%) 34 | 3 62 29 70 73 20 12 80 12 8 5 Regions Visited 10 Branch Regions 5 Pre-discovered Areas 1 | . . . 1 . . . . . . . Known Exits Taken . | . . . . . . . . . . . Unknown Exits Taken 10 | 1 1 1 1 1 1 1 1 1 1 . Scrap Searched 4 | . . . . 3 . . . 1 . . Spaces Dug 1 | . . . . . . . . . 1 . Terrain Destroyed 241 | . . . . 35 . 97 27 . 33 49 Melee 1 | . . . . . . . . . 1 . Projectile 16 | . . . . . . 3 10 . 3 . AOE 224 | . . . . 35 . 94 17 . 29 49 Terrain Rammed . | . . . . . . . . . . . Walls Destroyed . | . . . . . . . . . . . Machines Disabled . | . . . . . . . . . . . Actions | -11 -10 -10 -10 -9 -8 -7 -7 -7 -6 -5 --------- Run | Scr Mat Min Exi Min Mat Fac Low Low Fac Fac Total 3462 | 47 482 77 352 551 341 640 456 76 355 85 Wait 141 | . 4 . . 65 6 26 1 3 36 . Move 2900 | 37 413 75 344 446 286 488 411 67 252 81 Hop . | . . . . . . . . . . . Pick Up 55 | 4 8 1 4 7 10 9 1 2 9 . Fast Attach 41 | 6 2 . . . 5 9 5 2 11 1 Attach 27 | . 3 . 1 1 2 8 6 1 3 2 Detach 12 | . 1 . 1 . 3 4 1 . 2 . Swap 30 | . 3 . 1 5 3 8 3 . 7 . Drop 44 | . 3 1 1 7 8 13 . . 11 . Fire 208 | . 45 . . 20 18 75 26 . 23 1 Melee 4 | . . . . . . . 2 1 1 . Ram . | . . . . . . . . . . . Kick . | . . . . . . . . . . . Crush . | . . . . . . . . . . . Escape Stasis . | . . . . . . . . . . . Rewire . | . . . . . . . . . . . Trap . | . . . . . . . . . . . Miscellaneous . | . . . . . . . . . . . Route ------- -11/Scrapyard -10/Materials (discovered 2 exits: [*Mat] / [*Min]) -10/Mines -10/Exiles -9/Mines -8/Materials -7/Factory -7/Lower Caves -7/Lower Caves -6/Factory (discovered 2 exits: [*Fac] / Low) -5/Factory History --------- Turn | Location | Event 24 | -11/Scrapyard | Discovered new exit (range 15) 46 | -11/Scrapyard | Entered Materials 222 | -10/Materials | Discovered new exit (range 6) 314 | -10/Materials | Build established: Mutant 316 | -10/Materials | Discovered new exit (range 16) 651 | -10/Materials | Entered Mines 674 | -10/Mines | Met a Derelict bent on vengeance 767 | -10/Mines | Deemed a non-threat by the Exiles lab entrance 767 | -10/Mines | Discovered new exit (range 5) 773 | -10/Mines | Entered Exiles 812 | -10/Exiles | Met 8R-AWN 839 | -10/Exiles | Met EX-HEX 927 | -10/Exiles | Met EX-DEC 956 | -10/Exiles | Learned location of Zion (-7) 1007 | -10/Exiles | Met EX-BIN 1029 | -10/Exiles | Aligned with FarCom system 1031 | -10/Exiles | Given EX-Vault access code 1084 | -10/Exiles | Opened EX-Vault 1100 | -10/Exiles | Found AWS/Thermal 1104 | -10/Exiles | Found Latent Energy Streamer 1111 | -10/Exiles | Found Firepult 1144 | -10/Exiles | Warned to stay clear of 0b10 Research branches 1310 | -10/Exiles | Discovered new exit (range 11) 1331 | -10/Exiles | Stole three prototypes: AWS/Thermal, Latent Energy Streamer, Firepult 1331 | -10/Exiles | Entered Mines 1474 | -9/Mines | Core integrity fell below 50% 1553 | -9/Mines | Learned 2 Materials zone layouts 1910 | -9/Mines | A weapon hastily lodged in a ceiling crevice suddenly fell to the ground 2214 | -9/Mines | Discovered new exit (range 9) 2244 | -9/Mines | Entered Materials 2244 | -8/Materials | Evolved 4 slots: Utility x2, Weapon x2 2695 | -8/Materials | Discovered new exit (range 4) 2877 | -8/Materials | Entered Factory 2877 | -7/Factory | Evolved 2 slots: Propulsion x2 2879 | -7/Factory | FarCom data flow suspended 3357 | -7/Factory | Discovered new exit (range 10) 3505 | -7/Factory | Build established: Scavenger-Tank 3945 | -7/Factory | Lost 7 parts (3n2u2w) 4077 | -7/Factory | First assault squad dispatched 4080 | -7/Factory | Entered Lower Caves 4167 | -7/Lower Caves | Learned location of 1 exit from Factory 4289 | -7/Lower Caves | Lost 3 parts (1n2w) 4569 | -7/Lower Caves | Build established: Scavenger-Skirmisher 4647 | -7/Lower Caves | Core integrity fell below 50% 4673 | -7/Lower Caves | Lost 6 parts (2n1u3w) 4917 | -7/Lower Caves | Discovered new exit (range 17) 4934 | -7/Lower Caves | Encountered a Warlord checkpoint 4934 | -7/Lower Caves | Entered another Lower Caves area 4942 | -7/Lower Caves | Discovered new exit (range 19) 5012 | -7/Lower Caves | Entered Factory 5012 | -6/Factory | Evolved 2 slots: Propulsion x1, Utility x1 5013 | -6/Factory | Identified exit to Lower Caves 5292 | -6/Factory | Discovered new exit (range 22) 5408 | -6/Factory | Lost 6 parts (3n1u2w) 5441 | -6/Factory | Entered another Factory area 5441 | -5/Factory | Evolved 2 slots: Propulsion x1, Utility x1 5466 | -5/Factory | Lost 7 parts (1p3n3w) 5565 | -5/Factory | Self-destructed Last Messages --------------- 05531_ S-27 Virus destroyed. 05531_ Nuclear Reactor explodes. 05531_ Fusion Modulator explodes. 05531_ Imp. Melee Analysis Suite melted. 05531_ L-41 Fighter destroyed. 05531_ Fusion Modulator explodes. 05531_ ALERT: Construction progress impeded, dispatching reinforcements to local area. 05533_ K-01 Serf collects debris. 05537_ Wheel destroyed. 05544_ Penetrated by Slug. 05550_ Slug penetrates Power Conduit. 05550_ Neutron Cannon destroyed. 05554_ Penetrated by Slug. 05554_ Lgt. Ion Engine destroyed. 05554_ Imp. Cooling System destroyed. 05556_ K-01 Serf collects debris. 05557_ Penetrated by Slug. 05557_ Imp. Heat Sink destroyed. 05560_ Penetrated by Slug. Map ----- +----------------------------------------------------+ | ?????????????????????????????????????????????????? | | ?????????????????????????????????????????????????? | | ?????????????????????????????????????????????????? | | ?????????????????????????????????????????????????? | | ?????????????????????????????????????????????????? | | ?????????????????????????????????????????????????? | | ?????????????????????????????????????????????????? | | ?????????????????????????????????????????????????? | | ?????????????????????????????????????????????????? | | ?????????????????????????????????????????????????? | | ?????????????????????????????????????????????????? | | ?????????????????????????????????????????????????? | | ?????????????????????????????????????????????????? | | ???????????????????????????###???????????????????? | | ?????????????????????? #???????????????????? | | ????????????????# ?"""""""" #???????????????????? | | ?????##########?# +???????????????????? | | ###### #?# """"""""" #???????????????????? | | # #?# #???????????????????? | | # #?# """"""""" #???????????????????? | | # #?# #???????????????????? | | + #?# """"""""" #???????????????????? | | # #?# #???????????????????? | | # #?# """"""""" #??#???? #????????? | | # #?# ## # # #????????? | | # #?# @ ; #????????? | | ################;; ;; ;;; #????????? | | #????????? | | #????????? | | #????????? | | #????????? | | !!#????????? | | #############;; ! #????????? | | # = #????????? | | # ???????? | | + """ """ """ ??????? | | # """ """ """ ; ??????? | | # """ """ """ h ??????? | | # ???????? | | ############### ???????? | | ###############; ??????? | | t ?????????? | | ???????????? | | " ?????????? | | ???????? | | ???????? | | ################+##### ;;; ; ####??????????? | | ?????????# # ???????????????? | | ?????????# # ????????????????? | | ?????????# # ????????????????????? | +----------------------------------------------------+ Best States ------------- Heat Dissipation 81 Energy Generation 18 Energy Capacity 290 Matter Stores 300 Matter Capacity 300 Sight Range 22 Terrain Scan Range 20 Terrain Scan Density 10 Armor Coverage 225 Resistance: TH 10 Evasion (%) 44 Recoil Reduction 4 Offensive Hacking 10 Item Schematics ----------------- Hcp. Storage Unit | -10/Materials | Hacked Flak Gun | -7/Factory | Hacked Robot Schematics ------------------ None Fabricated ------------ Nothing Alien Tech Used ----------------- None Achievements -------------- None Challenges ------------ None Game ------ Seed CoordinationTiamatRipper Manual? 0 Play Time 00:54:45 Cumulative 92.2 hours Start 2021.12.09 @ 17:42:30 End 2021.12.09 @ 18:38:06 Sessions 1 Manual Loads 0 Difficulty Rogue Special Mode None Game No. 32 Rogue 32 Adventurer 0 Explorer 0 Win Type - Total 1 Types 1/0/0/0/0/0/0/0/0 Lore% 40 Gallery% 55 Achievement% 42 Wizard Run 0 Options --------- ASCII 1 Keyboard 1 Movement Numpad Keybinds 0 Fullscreen 1 Font 36/Smallcaps Map View 76x50 Tactical HUD 1 Map Filters NONE Filters NONE Steam 1 RUN: 5d4e410b-48ec-498c-9f7f-c18ee3759085